[Event "Redbull chessmasters 2019"]
[Site "Istambul"]
[Date "2019.11.24"]
[Round "1.1"]
[White "Aliakbarov, Anar"]
[Black "Kilic, Ihsan"]
[Result "1-0"]
[ECO "D35"]
[WhiteElo "2219"]
[BlackElo "1941"]
[Annotator "ChessBase"]
[PlyCount "53"]
[EventDate "2019.11.23"]
[EventType "k.o."]
[EventCountry "TUR"]
[SourceTitle "playchess.com"]
[Source "ChessBase"]
[SourceQuality "1"]
[TimeControl "600+5"]

1. d4 d5 2. c4 e6 3. cxd5 exd5 4. Nc3 Nf6 5. Bg5 Be7 6. e3 O-O 7. Bd3 Nbd7 8. Nge2 b6 9. O-O Bb7 10. Qc2 h6 11. Bh4 a6 12. f3 c5 13. Rad1 Rc8 14. Rfe1 Re8 15. h3 b5 16. dxc5 Rxc5 17. a3 Qa8 18. Nd4 Bf8 19. Kh1 Rcc8 20. Bf5 Rc4 21. Bd3 Rcc8 22. Qf2 Be7 23. Nf5 Bxa3 24. bxa3 Rxc3 25. Qg3 g6 26. Nxh6+ Kf8 27. Nxf7 1-0

[Event "Redbull chessmasters 2019"]
[Site "Istambul"]
[Date "2019.11.24"]
[Round "1.3"]
[White "Kesgin, Halit Kaan"]
[Black "Tofan, Ismail"]
[Result "0-1"]
[ECO "C41"]
[WhiteElo "2061"]
[BlackElo "1685"]
[Annotator "NA"]
[PlyCount "76"]
[EventDate "2019.11.23"]
[EventType "k.o."]
[EventCountry "TUR"]
[SourceTitle "playchess.com"]
[Source "ChessBase"]
[SourceQuality "1"]
[TimeControl "600+5"]

1. e4 d6 2. d4 Nf6 3. Nc3 Nbd7 4. Nf3 e5 5. Bc4 Be7 6. O-O h6 7. Re1 c6 8. a4 O-O 9. h3 Qc7 10. Ba2 Re8 11. Be3 Nf8 12. Qd2 Be6 13. d5 cxd5 14. exd5 Bf5 15. Nb5 Qb8 16. c4 Ne4 17. Qc1 Nd7 18. b4 Rc8 19. Qb2 a6 20. Nc3 Nxc3 21. Qxc3 b5 22. Rac1 bxc4 23. Bxc4 Nb6 24. Qb3 Qb7 25. Bxb6 Qxb6 26. a5 Qb7 27. Bf1 Rab8 28. Rxc8+ Rxc8 29. Bd3 Bxd3 30. Qxd3 Qxb4 31. Qxa6 Rc5 32. Qa8+ Bf8 33. Ra1 e4 34. Nh4 e3 35. Nf5 exf2+ 36. Kh1 Qf4 37. Ne7+ Kh7 38. Qxf8 f1=Q+ 0-1

[Event "Redbull chessmasters 2019"]
[Site "Istambul"]
[Date "2019.11.24"]
[Round "1.5"]
[White "Kilic, Efe Mert"]
[Black "Ozenir, Ekin Baris"]
[Result "0-1"]
[ECO "B00"]
[WhiteElo "2247"]
[BlackElo "2274"]
[Annotator "ChessBase"]
[PlyCount "110"]
[EventDate "2019.11.23"]
[EventType "k.o."]
[EventCountry "TUR"]
[SourceTitle "playchess.com"]
[Source "ChessBase"]
[SourceQuality "1"]
[TimeControl "600+5"]

1. e4 {[%emt 0:04:23]} Nc6 {[%emt 0:00:58]} 2. Nc3 {[%emt 0:00:05]} Nf6 {[%emt 0:00:05]} 3. f4 {[%emt 0:00:05]} d5 {[%emt 0:00:05]} 4. e5 {[%emt 0:00:05]} Nd7 {[%emt 0:00:05]} 5. e6 {[%emt 0:00:05]} fxe6 {[%emt 0:00:05]} 6. d4 {[%emt 0:00:05]} g6 {[%emt 0:00:05]} 7. Nf3 {[%emt 0:00:05]} Bg7 {[%emt 0:00:05]} 8. h4 {[%emt 0:00:05]} Nf6 {[%emt 0:00:05]} 9. Ne5 {[%emt 0:00:11]} Nxe5 {[%emt 0:00:05]} 10. fxe5 {[%emt 0:00:05]} Nh5 {[%emt 0:00:05]} 11. g4 {[%emt 0:00:15]} Ng3 {[%emt 0:00:05]} 12. Rg1 {[%emt 0:00:32]} Nxf1 {[%emt 0:00:50]} 13. Rxf1 {[%emt 0:00:05]} Rf8 {[%emt 0:00:05]} 14. Rxf8+ {[%emt 0:00:05]} Kxf8 {[%emt 0:01:08]} 15. Be3 {[%emt 0:00:45]} Kg8 {[%emt 0:00:30]} 16. Qd2 {[%emt 0:00:20]} c5 {[%emt 0:00:20]} 17. O-O-O {[%emt 0:00:02]} cxd4 {[%emt 0:00:20]} 18. Bxd4 {[%emt 0:00:09]} Bd7 {[%emt 0:00:27]} 19. Kb1 {[%emt 0:00:08]} Qa5 {[%emt 0:00:49]} 20. h5 {[%emt 0:00:21]} Rf8 {[%emt 0:01:03]} 21. hxg6 {[%emt 0:00:16]} hxg6 {[%emt 0:00:07]} 22. Qd3 {[%emt 0:00:05]} Be8 {[%emt 0:00:14]} 23. Rh1 {[%emt 0:00:43]} Rf4 {[%emt 0:01:04]} 24. Qe3 {[%emt 0:00:56]} g5 {[%emt 0:00:34]} 25. Bxa7 {[%emt 0:01:23]} Qa6 {[%emt 0:00:24]} 26. Bc5 {[%emt 0:00:30]} Rf1+ {[%emt 0:00:11]} 27. Rxf1 {[%emt 0:00:01]} Qxf1+ {[%emt 0:00:01]} 28. Qc1 {[%emt 0:00:00]} Qxc1+ {[%emt 0:00:39]} 29. Kxc1 {[%emt 0:00:01]} Bxe5 {[%emt 0:00:02]} 30. Bxe7 {[%emt 0:00:10]} Bf4+ {[%emt 0:00:05]} 31. Kd1 {[%emt 0:00:00]} Bc6 {[%emt 0:00:17]} 32. Ne2 {[%emt 0:00:03]} Be3 {[%emt 0:00:07]} 33. Bf6 {[%emt 0:00:17]} Kf7 {[%emt 0:00:36]} 34. Be5 {[%emt 0:00:04]} Bb5 {[%emt 0:00:14]} 35. c3 {[%emt 0:00:15]} Bc4 {[%emt 0:00:19]} 36. b3 {[%emt 0:00:04]} Bd3 {[%emt 0:00:02]} 37. a4 {[%emt 0:00:00]} Be4 {[%emt 0:00:09]} 38. Bd4 {[%emt 0:00:11]} Bxd4 {[%emt 0:00:20]} 39. Nxd4 {[%emt 0:00:00]} e5 {[%emt 0:00:00]} 40. Nb5 {[%emt 0:00:07]} Ke6 {[%emt 0:00:06]} 41. b4 {[%emt 0:00:13]} Bf3+ {[%emt 0:00:11]} 42. Kd2 {[%emt 0:00:01]} Bxg4 {[%emt 0:00:10]} 43. a5 {[%emt 0:00:00]} Kd7 {[%emt 0:00:02]} 44. Ke3 {[%emt 0:00:04]} Bf5 {[%emt 0:00:15]} 45. Na3 {[%emt 0:00:07]} g4 {[%emt 0:00:07]} 46. b5 {[%emt 0:00:05]} Kc7 {[%emt 0:00:00]} 47. c4 {[%emt 0:00:00]} d4+ {[%emt 0:00:00]} 48. Kf2 {[%emt 0:00:05]} e4 {[%emt 0:00:05]} 49. c5 {[%emt 0:00:00]} e3+ {[%emt 0:00:01]} 50. Ke2 {[%emt 0:00:00]} g3 {[%emt 0:00:04]} 51. Kf3 {[%emt 0:00:01]} e2 {[%emt 0:00:08]} 52. Kxe2 {[%emt 0:00:03]} d3+ {[%emt 0:00:01]} 53. Kf3 {[%emt 0:00:07]} d2 {[%emt 0:00:05]} 54. Ke2 {[%emt 0:00:00]} g2 {[%emt 0:00:00]} 55. Nc4 {[%emt 0:00:00]} d1=Q+ {[%emt 0:00:03]} 0-1

[Event "Redbull chessmasters 2019"]
[Site "Istambul"]
[Date "2019.11.24"]
[Round "1.8"]
[White "Sahin, Handenur"]
[Black "Kalayci, Nino"]
[Result "1-0"]
[ECO "C06"]
[WhiteElo "2014"]
[BlackElo "1852"]
[Annotator "NA"]
[PlyCount "109"]
[EventDate "2019.11.23"]
[EventType "k.o."]
[EventCountry "TUR"]
[SourceTitle "playchess.com"]
[Source "ChessBase"]
[SourceQuality "1"]
[TimeControl "600+5"]

1. e4 {[%emt 0:00:44]} e6 {[%emt 0:04:43]} 2. d4 {[%emt 0:00:05]} d5 {[%emt 0:00:05]} 3. Nd2 {[%emt 0:00:05]} Nf6 {[%emt 0:00:05]} 4. e5 {[%emt 0:00:05]} Nfd7 {[%emt 0:00:05]} 5. Bd3 {[%emt 0:00:05]} c5 {[%emt 0:00:05]} 6. c3 {[%emt 0:00:05]} Nc6 {[%emt 0:00:05]} 7. Ne2 {[%emt 0:00:05]} Qb6 {[%emt 0:00:05]} 8. Nf3 {[%emt 0:00:05]} cxd4 {[%emt 0:00:05]} 9. cxd4 {[%emt 0:00:05]} Bb4+ {[%emt 0:00:05]} 10. Bd2 {[%emt 0:00:05]} Bxd2+ {[%emt 0:00:05]} 11. Qxd2 {[%emt 0:00:05]} Qb4 {[%emt 0:00:28]} 12. O-O {[%emt 0:01:04]} Qxd2 {[%emt 0:00:05]} 13. Nxd2 {[%emt 0:00:05]} Nb4 {[%emt 0:00:05] C06: French Tarrasch: 3...Nf6 4 e5 Nfd7 5 Bd3 main lines} 14. Bb1 {[%emt 0:00:05]} f6 {[%emt 0:00:37]} 15. Nf4 $146 {[%emt 0:02:41]} ({Predecessor:} 15. f4 b6 16. a3 Ba6 17. axb4 Bxe2 18. Re1 Bb5 19. exf6 Nxf6 20. Rxe6+ Kf7 21. Re5 {½-½ (62) Kotzem,E (2185)-Roth,L (2156) Dresden 2004}) 15... Kf7 {[%emt 0:00:45]} 16. exf6 {[%emt 0:00:14]} gxf6 {[%emt 0:00:32]} 17. a3 {[%emt 0:00:05]} Nc6 {[%emt 0:00:10]} 18. Nf3 {[%emt 0:00:02]} Nb6 {[%emt 0:00:16]} 19. Ba2 {[%emt 0:01:01]} Bd7 {[%emt 0:00:23]} 20. Rac1 {[%emt 0:00:10]} Rac8 {[%emt 0:00:29]} 21. Nd3 {[%emt 0:00:17]} Rce8 {[%emt 0:02:00]} 22. Nc5 {[%emt 0:00:09]} Bc8 {[%emt 0:00:01]} 23. Rfe1 {[%emt 0:00:11]} Rhg8 {[%emt 0:00:15]} 24. b4 {[%emt 0:01:44]} a6 {[%emt 0:00:05]} (24... Rd8 $14) 25. Nxa6 {[%emt 0:00:32]} Rg4 {[%emt 0:00:09]} 26. Nc7 {[%emt 0:00:26]} Reg8 {[%emt 0:00:01]} 27. g3 {[%emt 0:00:07]} Nxd4 {[%emt 0:00:06]} 28. Nxd4 {[%emt 0:00:10]} Rxd4 {[%emt 0:00:01]} 29. Nb5 {[%emt 0:00:28]} Rd2 {[%emt 0:00:01]} 30. Nd6+ {[%emt 0:00:09]} Ke7 $11 {[%emt 0:00:12]} 31. Nxc8+ {[%emt 0:00:15]} Rxc8 {[%emt 0:00:01]} 32. Rxc8 {[%emt 0:00:09]} Nxc8 {[%emt 0:00:01]} 33. Bb1 {[%emt 0:00:10]} Kd6 {[%emt 0:00:01]} 34. Bxh7 {[%emt 0:00:15]} Ra2 {[%emt 0:00:03]} 35. Re3 {[%emt 0:00:12]} d4 {[%emt 0:00:05]} 36. Rd3 {[%emt 0:00:01]} e5 {[%emt 0:00:01]} 37. Bg8 {[%emt 0:00:05]} Ra1+ {[%emt 0:00:01]} 38. Kg2 {[%emt 0:00:03]} Ne7 {[%emt 0:00:01]} 39. Bc4 {[%emt 0:00:02]} Nc6 {[%emt 0:00:21]} 40. b5 {[%emt 0:00:16]} Ne7 {[%emt 0:00:17]} 41. g4 {[%emt 0:00:05]} Kc5 {[%emt 0:00:09]} 42. Bf7 {[%emt 0:00:06]} e4 {[%emt 0:00:04]} 43. Rd2 {[%emt 0:00:12]} Rxa3 {[%emt 0:00:01]} 44. h4 {[%emt 0:00:04]} Rd3 {[%emt 0:00:08]} 45. Re2 {[%emt 0:00:06]} e3 {[%emt 0:00:08]} 46. fxe3 {[%emt 0:00:04]} dxe3 {[%emt 0:00:00]} 47. Kf3 {[%emt 0:00:02]} Kd4 {[%emt 0:00:00]} 48. h5 {[%emt 0:00:10]} Nc8 {[%emt 0:00:17]} 49. Bg6 {[%emt 0:00:07]} Rc3 {[%emt 0:00:03]} 50. h6 {[%emt 0:00:02]} Nd6 {[%emt 0:00:01]} 51. h7 {[%emt 0:00:07]} Rc8 {[%emt 0:00:05]} 52. Rxe3 {[%emt 0:00:03]} Nc4 {[%emt 0:00:03]} 53. Re4+ {[%emt 0:00:04]} Kd3 {[%emt 0:00:02]} 54. Re8+ {[%emt 0:00:05]} Kd4 {[%emt 0:00:04]} 55. Rxc8 {[%emt 0:00:11]} 1-0

[Event "Redbull chessmasters 2019"]
[Site "Istambul"]
[Date "2019.11.24"]
[Round "1.13"]
[White "Ererdem, Gani Eren"]
[Black "Alaz, Ahmet Efekan"]
[Result "1-0"]
[ECO "D93"]
[WhiteElo "2105"]
[BlackElo "2288"]
[Annotator "ChessBase"]
[PlyCount "75"]
[EventDate "2019.11.23"]
[EventType "k.o."]
[EventCountry "TUR"]
[SourceTitle "playchess.com"]
[Source "ChessBase"]
[SourceQuality "1"]
[TimeControl "600+5"]

1. d4 {[%emt 0:03:07]} d5 {[%emt 0:02:55]} 2. Nf3 {[%emt 0:00:05]} Nf6 {[%emt 0:00:05]} 3. c4 {[%emt 0:00:05]} c6 {[%emt 0:00:05]} 4. Qc2 {[%emt 0:00:05]} g6 {[%emt 0:00:05]} 5. Bf4 {[%emt 0:00:05]} Bg7 {[%emt 0:00:05]} 6. e3 {[%emt 0:00:05]} Bf5 {[%emt 0:00:05]} 7. Qb3 {[%emt 0:00:05]} Qb6 {[%emt 0:00:05]} 8. Nc3 {[%emt 0:00:05]} O-O {[%emt 0:01:20]} 9. c5 {[%emt 0:00:12]} Qxb3 {[%emt 0:00:05]} 10. axb3 {[%emt 0:01:06]} Nbd7 {[%emt 0:00:53]} 11. h3 {[%emt 0:00:15]} Ne4 {[%emt 0:02:16]} 12. b4 {[%emt 0:01:11]} a6 {[%emt 0:00:13]} 13. Be2 {[%emt 0:00:24]} f6 {[%emt 0:01:30]} 14. O-O {[%emt 0:00:24]} e5 {[%emt 0:00:19]} 15. Bh2 {[%emt 0:00:03]} Rfe8 {[%emt 0:00:35]} 16. Rfd1 {[%emt 0:00:28]} Nxc3 {[%emt 0:00:13]} 17. bxc3 {[%emt 0:00:03]} Be6 {[%emt 0:00:16]} 18. Rac1 {[%emt 0:01:25]} Rad8 {[%emt 0:00:04]} 19. Nd2 {[%emt 0:00:13]} f5 {[%emt 0:00:09]} 20. Nb3 {[%emt 0:00:04]} b6 {[%emt 0:00:14]} 21. cxb6 {[%emt 0:00:44]} Nxb6 {[%emt 0:00:07]} 22. Bxa6 {[%emt 0:00:03]} Bc8 {[%emt 0:00:02]} 23. Bf1 {[%emt 0:00:24]} Bb7 {[%emt 0:00:07]} 24. Nc5 {[%emt 0:00:19]} Bc8 {[%emt 0:00:02]} 25. Ra1 {[%emt 0:00:05]} Nd7 {[%emt 0:00:04]} 26. Nxd7 {[%emt 0:00:18]} Bxd7 {[%emt 0:00:01]} 27. Ra7 {[%emt 0:00:09]} Bf6 {[%emt 0:00:12]} 28. dxe5 {[%emt 0:00:16]} Bxe5 {[%emt 0:00:02]} 29. Bxe5 {[%emt 0:00:01]} Rxe5 {[%emt 0:00:00]} 30. c4 {[%emt 0:00:03]} Be6 {[%emt 0:00:12]} 31. b5 {[%emt 0:00:08]} cxb5 {[%emt 0:00:08]} 32. cxb5 {[%emt 0:00:02]} Rb8 {[%emt 0:00:04]} 33. Rc1 {[%emt 0:00:09]} Rc8 {[%emt 0:00:06]} 34. Rxc8+ {[%emt 0:00:07]} Bxc8 {[%emt 0:00:01]} 35. Ra8 {[%emt 0:00:01]} Re8 {[%emt 0:00:08]} 36. b6 {[%emt 0:00:01]} Kf7 {[%emt 0:00:00]} 37. Bb5 {[%emt 0:00:09]} Rd8 {[%emt 0:00:00]} 38. b7 {[%emt 0:00:08]} 1-0

[Event "Redbull chessmasters 2019"]
[Site "Istambul"]
[Date "2019.11.24"]
[Round "1.16"]
[White "Yanik, Sural Emine"]
[Black "Gur, Tuba"]
[Result "1-0"]
[ECO "D03"]
[WhiteElo "1834"]
[BlackElo "1782"]
[Annotator "NA"]
[PlyCount "117"]
[EventDate "2019.11.23"]
[EventType "k.o."]
[EventCountry "TUR"]
[SourceTitle "playchess.com"]
[Source "ChessBase"]
[SourceQuality "1"]
[TimeControl "600+5"]

1. d4 {[%emt 0:01:36]} d5 {[%emt 0:03:48]} 2. Nf3 {[%emt 0:00:05]} Nf6 {[%emt 0:00:05]} 3. Bg5 {[%emt 0:00:05]} e6 {[%emt 0:00:05]} 4. e3 {[%emt 0:00:05]} Be7 {[%emt 0:00:05]} 5. Bd3 {[%emt 0:00:05]} c5 {[%emt 0:00:05]} 6. c3 {[%emt 0:00:05] D03: 1 d4 d5 2 Nf3 Nf6 3 Bg5, including Torre Attack with early ...d5} (6. O-O Nbd7 7. c3 b6 8. Nbd2 Bb7 9. a3 Ne4 10. Bxe7 Qxe7 11. Bb5 O-O 12. Bxd7 Qxd7 13. Ne5 Qc7 14. f4 f6 15. Nef3 cxd4 16. Nxe4 dxe4 17. Nxd4 {½-½ (61) Velten,P (2437)-Apicella,M (2520) Nimes 2014}) 6... Qb6 {[%emt 0:00:05]} 7. Qc2 {[%emt 0:00:05]} Nc6 {[%emt 0:00:05]} 8. O-O {[%emt 0:00:05]} h6 {[%emt 0:00:05]} 9. Bh4 {[%emt 0:00:05]} c4 $146 {[%emt 0:00:05]} ({Predecessor:} 9... Bd7 10. dxc5 Qxc5 11. b4 Qb6 12. a4 Rc8 13. a5 Qd8 14. Qa2 {0-1 (44) Schneider,A (2061)-Orlova,L (2004) Bad Neuenahr 2014}) 10. Be2 {[%emt 0:00:05]} Qc7 {[%emt 0:00:05]} ({Better is} 10... g5 $11 11. Bg3 Ne4) 11. Nbd2 {[%emt 0:00:05]} b5 {[%emt 0:00:05]} 12. e4 {[%emt 0:00:43]} dxe4 {[%emt 0:00:51]} 13. Nxe4 {[%emt 0:00:05]} Nxe4 {[%emt 0:00:05]} 14. Qxe4 {[%emt 0:00:05]} Bb7 {[%emt 0:00:42]} 15. b3 {[%emt 0:02:44]} Na5 {[%emt 0:00:15]} 16. Qg4 {[%emt 0:00:26]} O-O {[%emt 0:01:04]} 17. Bxe7 {[%emt 0:01:12]} Qxe7 {[%emt 0:00:05]} 18. b4 {[%emt 0:00:28]} Nc6 {[%emt 0:00:15]} 19. a4 {[%emt 0:00:21]} a6 {[%emt 0:00:02]} 20. Rfe1 {[%emt 0:00:08]} Qc7 {[%emt 0:00:58]} 21. Bd1 {[%emt 0:00:11]} Ne7 {[%emt 0:00:26]} 22. Bc2 {[%emt 0:00:42]} Bc6 {[%emt 0:00:30]} 23. Ne5 {[%emt 0:00:09]} f5 {[%emt 0:00:40]} 24. Qh5 {[%emt 0:01:08]} Bd5 {[%emt 0:00:21]} 25. a5 {[%emt 0:00:13]} Qb7 {[%emt 0:00:22]} 26. Qh3 {[%emt 0:00:16]} Nc6 {[%emt 0:00:12]} 27. f4 $14 {[%emt 0:00:36]} Nxe5 {[%emt 0:00:17]} 28. Rxe5 {[%emt 0:00:09]} Qf7 {[%emt 0:00:10]} 29. Bd1 {[%emt 0:00:02]} g5 {[%emt 0:00:09]} 30. Qxh6 {[%emt 0:00:06]} gxf4 {[%emt 0:00:06]} 31. Qxf4 {[%emt 0:00:10]} Qg6 {[%emt 0:00:02]} 32. Qg3 {[%emt 0:00:03]} Qxg3 {[%emt 0:00:02]} 33. hxg3 {[%emt 0:00:03]} Rf6 {[%emt 0:00:11]} 34. Bf3 {[%emt 0:00:00]} Rd8 {[%emt 0:00:08]} 35. Rae1 {[%emt 0:00:00]} Kf7 {[%emt 0:00:05]} 36. Bxd5 {[%emt 0:00:07]} Rxd5 {[%emt 0:00:04]} 37. Rxd5 {[%emt 0:00:06]} exd5 {[%emt 0:00:05]} 38. Re5 {[%emt 0:00:00]} f4 {[%emt 0:00:13]} 39. gxf4 {[%emt 0:00:02]} Rxf4 {[%emt 0:00:01]} 40. Rxd5 {[%emt 0:00:01]} Ke6 {[%emt 0:00:04]} 41. Rh5 {[%emt 0:00:10]} Rf6 {[%emt 0:00:03]} 42. Re5+ {[%emt 0:00:02]} Kd6 {[%emt 0:00:01]} 43. g4 {[%emt 0:00:04]} Rf3 {[%emt 0:00:02]} 44. Kg2 {[%emt 0:00:16]} Rxc3 {[%emt 0:00:02]} 45. Rh5 {[%emt 0:00:01]} Re3 {[%emt 0:00:03]} 46. Rh6+ {[%emt 0:00:06]} Re6 {[%emt 0:00:01]} 47. Rh8 {[%emt 0:00:20]} Kd5 {[%emt 0:00:04]} 48. Rd8+ {[%emt 0:00:00]} Ke4 {[%emt 0:00:01]} 49. d5 {[%emt 0:00:00]} Rg6 {[%emt 0:00:08]} 50. Kg3 {[%emt 0:00:00]} c3 {[%emt 0:00:01]} 51. d6 {[%emt 0:00:00]} c2 {[%emt 0:00:02]} 52. Rc8 {[%emt 0:00:02]} Kd3 {[%emt 0:00:13]} 53. d7 {[%emt 0:00:09]} Rd6 {[%emt 0:00:01]} 54. d8=Q {[%emt 0:00:00]} Rxd8 {[%emt 0:00:01]} 55. Rxd8+ {[%emt 0:00:05]} Kc3 {[%emt 0:00:00]} 56. g5 {[%emt 0:00:00]} Kb2 {[%emt 0:00:00]} 57. g6 {[%emt 0:00:00]} Kc1 {[%emt 0:00:00]} 58. g7 {[%emt 0:00:00]} Kb2 {[%emt 0:00:00]} 59. g8=Q {[%emt 0:00:00]} 1-0

[Event "Redbull chessmasters 2019"]
[Site "Istambul"]
[Date "2019.11.24"]
[Round "2.1"]
[White "Kilic, Ihsan"]
[Black "Aliakbarov, Anar"]
[Result "0-1"]
[ECO "D02"]
[WhiteElo "1941"]
[BlackElo "2219"]
[Annotator "ChessBase"]
[PlyCount "97"]
[EventDate "2019.11.23"]
[EventType "k.o."]
[EventCountry "TUR"]
[SourceTitle "playchess.com"]
[Source "ChessBase"]
[SourceQuality "1"]
[TimeControl "600+5"]

1. d4 {[%emt 0:00:00]} d5 {[%emt 0:00:00]} 2. Nf3 {[%emt 0:00:04]} Nf6 {[%emt 0:00:00]} 3. g3 {[%emt 0:00:05]} e6 {[%emt 0:00:02]} 4. Bg2 {[%emt 0:00:05]} Be7 {[%emt 0:00:05]} 5. O-O {[%emt 0:00:05]} O-O {[%emt 0:00:05]} 6. b3 {[%emt 0:00:00]} c5 {[%emt 0:00:11]} 7. e3 {[%emt 0:00:00]} Nc6 {[%emt 0:00:05]} 8. Bb2 {[%emt 0:00:00]} cxd4 {[%emt 0:00:17]} 9. exd4 {[%emt 0:00:04]} b6 {[%emt 0:00:05]} 10. Nbd2 {[%emt 0:00:05]} Bb7 {[%emt 0:00:05]} 11. a3 {[%emt 0:00:05]} Rc8 {[%emt 0:00:05]} 12. Rc1 {[%emt 0:00:00]} b5 {[%emt 0:00:29]} 13. Re1 {[%emt 0:00:11]} Bd6 {[%emt 0:00:29]} 14. Ne5 {[%emt 0:00:19]} Qe7 {[%emt 0:00:08]} 15. b4 {[%emt 0:00:57]} a5 {[%emt 0:01:18]} 16. c3 {[%emt 0:00:43]} Bxe5 {[%emt 0:00:05]} 17. dxe5 {[%emt 0:00:05]} Nd7 {[%emt 0:00:00]} 18. f4 {[%emt 0:00:29]} Nb6 {[%emt 0:00:07]} 19. Nb3 {[%emt 0:02:32]} Na4 {[%emt 0:00:15]} 20. Ba1 {[%emt 0:00:38]} Rfd8 {[%emt 0:00:25]} 21. Qe2 {[%emt 0:00:08]} axb4 {[%emt 0:00:11]} 22. cxb4 {[%emt 0:00:22]} Ba6 {[%emt 0:00:59]} 23. Nd4 {[%emt 0:01:03]} Nxd4 {[%emt 0:00:13]} 24. Bxd4 {[%emt 0:00:05]} Rc4 {[%emt 0:00:05]} 25. Qe3 {[%emt 0:00:05]} Rdc8 {[%emt 0:00:05]} 26. Bf1 {[%emt 0:00:05]} R4c6 {[%emt 0:00:09]} 27. Rxc6 {[%emt 0:00:13]} Rxc6 {[%emt 0:00:05]} 28. Rc1 {[%emt 0:00:05]} Qc7 {[%emt 0:00:05]} 29. Rxc6 {[%emt 0:00:05]} Qxc6 {[%emt 0:00:05]} 30. Bd3 {[%emt 0:00:35]} g6 {[%emt 0:00:35]} 31. Bb1 {[%emt 0:00:18]} Bc8 {[%emt 0:00:27]} 32. h4 {[%emt 0:00:07]} Bd7 {[%emt 0:00:27]} 33. h5 {[%emt 0:00:07]} Qc4 {[%emt 0:00:07]} 34. Kf2 {[%emt 0:00:19]} Qc6 {[%emt 0:00:05]} 35. g4 {[%emt 0:00:24]} Kf8 {[%emt 0:01:10]} 36. hxg6 {[%emt 0:00:11]} hxg6 {[%emt 0:00:16]} 37. f5 {[%emt 0:00:24]} exf5 {[%emt 0:00:06]} 38. Qh6+ {[%emt 0:00:28]} Ke7 {[%emt 0:00:02]} 39. gxf5 {[%emt 0:00:40]} gxf5 {[%emt 0:00:05]} 40. Qg5+ {[%emt 0:00:05]} Ke8 {[%emt 0:00:04]} 41. Qg8+ {[%emt 0:00:29]} Ke7 {[%emt 0:00:00]} 42. Qg5+ {[%emt 0:00:05]} Ke8 {[%emt 0:00:09]} 43. Qg8+ {[%emt 0:00:29]} Ke7 {[%emt 0:00:05]} 44. Qg5+ {[%emt 0:00:03]} Ke8 {[%emt 0:00:04]} 45. e6 {[%emt 0:00:14]} Bxe6 {[%emt 0:00:34]} 46. Bf6 {[%emt 0:00:05]} Kd7 {[%emt 0:00:13]} 47. Qg8 {[%emt 0:00:08]} Qc8 {[%emt 0:00:25]} 48. Qg3 {[%emt 0:00:03]} Qc1 {[%emt 0:00:37]} 49. Qg8 {[%emt 0:00:13]} 0-1

[Event "Redbull chessmasters 2019"]
[Site "Istambul"]
[Date "2019.11.24"]
[Round "2.2"]
[White "Eren, Ataberk"]
[Black "Cil, Batuhan"]
[Result "1-0"]
[ECO "D02"]
[WhiteElo "2284"]
[BlackElo "1737"]
[Annotator "ChessBase"]
[PlyCount "80"]
[EventDate "2019.11.23"]
[EventType "k.o."]
[EventCountry "TUR"]
[SourceTitle "playchess.com"]
[Source "ChessBase"]
[SourceQuality "1"]
[TimeControl "600+5"]

1. d4 {[%emt 0:00:00]} d5 {[%emt 0:00:02]} 2. Nf3 {[%emt 0:00:02]} Nf6 {[%emt 0:00:05]} 3. Bf4 {[%emt 0:00:00]} e6 {[%emt 0:00:00]} 4. e3 {[%emt 0:00:03]} c5 {[%emt 0:00:04]} 5. c3 {[%emt 0:00:05]} Nc6 {[%emt 0:00:05]} 6. Nbd2 {[%emt 0:00:05]} Bd6 {[%emt 0:00:05]} 7. Bg3 {[%emt 0:00:05]} O-O {[%emt 0:00:05]} 8. Bb5 {[%emt 0:00:00]} Qe7 {[%emt 0:01:49]} 9. O-O {[%emt 0:00:00]} Bxg3 {[%emt 0:00:15]} 10. hxg3 {[%emt 0:00:00]} Bd7 {[%emt 0:00:05]} 11. Bxc6 {[%emt 0:00:01]} Bxc6 {[%emt 0:00:06]} 12. Ne5 {[%emt 0:00:00]} Nd7 {[%emt 0:00:47]} 13. Nxd7 {[%emt 0:00:00]} Bxd7 {[%emt 0:00:19]} 14. Qb3 {[%emt 0:00:01]} Bc6 {[%emt 0:00:32]} 15. Qa3 {[%emt 0:00:06]} b6 {[%emt 0:00:05]} 16. b4 {[%emt 0:00:10]} Bb5 {[%emt 0:01:48]} 17. Rfb1 {[%emt 0:00:07]} cxb4 {[%emt 0:00:26]} 18. Qxb4 {[%emt 0:00:00]} Qxb4 {[%emt 0:00:05]} 19. Rxb4 {[%emt 0:00:10]} Rfc8 {[%emt 0:00:15]} 20. Rxb5 {[%emt 0:00:05]} Rxc3 {[%emt 0:00:09]} 21. a4 {[%emt 0:00:07]} Rac8 {[%emt 0:00:43]} 22. a5 {[%emt 0:00:01]} Rc2 {[%emt 0:01:23]} 23. Nf1 {[%emt 0:00:05]} Re2 {[%emt 0:00:29]} 24. axb6 {[%emt 0:00:29]} axb6 {[%emt 0:00:05]} 25. Rxb6 {[%emt 0:00:05]} g5 {[%emt 0:00:05]} 26. Nh2 {[%emt 0:00:05]} h5 {[%emt 0:00:05]} 27. Nf3 {[%emt 0:00:05]} Rcc2 {[%emt 0:00:05]} 28. Rf1 {[%emt 0:00:05]} g4 {[%emt 0:00:05]} 29. Ne5 {[%emt 0:00:05]} Rc7 {[%emt 0:00:05]} 30. Nd3 {[%emt 0:00:00]} Rcc2 {[%emt 0:01:53]} 31. Nf4 {[%emt 0:00:00]} Red2 {[%emt 0:00:05]} 32. Nxh5 {[%emt 0:00:00]} Kf8 {[%emt 0:00:05]} 33. Rb8+ {[%emt 0:00:00]} Ke7 {[%emt 0:00:05]} 34. Rb7+ {[%emt 0:00:00]} Kf8 {[%emt 0:00:20]} 35. Nf6 {[%emt 0:00:00]} Kg7 {[%emt 0:00:07]} 36. Nxg4 {[%emt 0:00:00]} Rc8 {[%emt 0:00:05]} 37. Ne5 {[%emt 0:00:02]} Rf8 {[%emt 0:00:05]} 38. g4 {[%emt 0:00:05]} Rc2 {[%emt 0:00:05]} 39. g5 {[%emt 0:00:05]} Rcc8 {[%emt 0:00:05]} 40. g6 {[%emt 0:00:05]} Kf6 {[%emt 0:00:13]} 1-0

[Event "Redbull chessmasters 2019"]
[Site "Istambul"]
[Date "2019.11.24"]
[Round "2.3"]
[White "Tofan, Ismail"]
[Black "Kesgin, Halit Kaan"]
[Result "0-1"]
[ECO "A13"]
[WhiteElo "1685"]
[BlackElo "2061"]
[Annotator "NA"]
[PlyCount "38"]
[EventDate "2019.11.23"]
[EventType "k.o."]
[EventCountry "TUR"]
[SourceTitle "playchess.com"]
[Source "ChessBase"]
[SourceQuality "1"]
[TimeControl "600+5"]

1. Nf3 {[%emt 0:00:00]} d5 {[%emt 0:00:00]} 2. b3 {[%emt 0:00:00]} Nf6 {[%emt 0:00:07]} 3. Bb2 {[%emt 0:00:03]} e6 {[%emt 0:00:05]} 4. e3 {[%emt 0:00:05]} c5 {[%emt 0:00:05]} 5. c4 {[%emt 0:00:05]} Nc6 {[%emt 0:00:05]} 6. Be2 {[%emt 0:00:05]} Be7 {[%emt 0:00:00]} 7. O-O {[%emt 0:00:00]} O-O {[%emt 0:00:07]} 8. Nc3 {[%emt 0:00:05]} d4 {[%emt 0:00:25]} 9. exd4 {[%emt 0:01:44]} cxd4 {[%emt 0:00:02]} 10. Nb5 {[%emt 0:00:44]} d3 {[%emt 0:00:18]} 11. Bxd3 {[%emt 0:00:05]} Qxd3 {[%emt 0:00:05]} 12. Ne5 {[%emt 0:00:13]} Nxe5 {[%emt 0:00:00]} 13. Bxe5 {[%emt 0:00:00]} Bd7 {[%emt 0:00:19]} 14. Nc3 {[%emt 0:00:30]} Bc6 {[%emt 0:00:09]} 15. Re1 {[%emt 0:00:05]} Rad8 {[%emt 0:00:12]} 16. Bf4 {[%emt 0:01:34]} Bc5 {[%emt 0:00:50]} 17. a3 {[%emt 0:00:32]} a5 {[%emt 0:00:56]} 18. h4 {[%emt 0:00:28]} Qg6 {[%emt 0:00:23]} 19. Bg3 {[%emt 0:01:21]} Qxg3 {[%emt 0:00:07]} 0-1